fUSD/lending_fUSD_20250219
["ID","MTS","AMOUNT","RATE_DAILY","PERIOD"]
[353663909,1739985085765,-500.0,0.0001364,2]
[353663910,1739985085776,-500.0,0.0001364,2]
[353663911,1739985085786,-863.17,0.0001364,2]
[353663912,1739985085797,-259.07160175,0.0001364,2]
[353663913,1739985085807,-156.720506,0.0001364,2]
[353663914,1739985085817,-500.0,0.00013642,2]
[353663915,1739985085827,-510.97,0.00013642,2]
[353663916,1739985085837,-599.36,0.00013642,2]
[353663917,1739985085847,-151.0,0.00013643,2]
[353663918,1739985085857,-500.0,0.00013643,2]
[353663919,1739985085868,-729.21,0.00013643,2]
[353663920,1739985085879,-652.48,0.00013643,2]
[353663921,1739985085890,-500.0,0.00013643,2]
[353663922,1739985085900,-989.93,0.00013643,2]
[353663923,1739985085911,-500.0,0.00013643,2]
[353663924,1739985085922,-500.0,0.00013643,2]
[353663925,1739985085932,-613.67,0.00013643,2]
[353663926,1739985085942,-876.6,0.00013643,2]
[353663927,1739985085953,-500.0,0.00013644,2]
[353663928,1739985085963,-263.11969102,0.00013644,2]
[353663929,1739985085973,-500.0,0.00013662,2]
[353663930,1739985085983,-510.97,0.00013662,2]
[353663931,1739985085994,-1000.0,0.0001367,2]
[353663932,1739985086004,-1000.0,0.0001367,2]
[353663933,1739985086014,-1000.0,0.0001367,2]
[353663934,1739985086025,-1000.0,0.0001367,2]
[353663935,1739985086035,-1000.0,0.0001367,2]
[353663936,1739985086045,-1000.0,0.0001367,2]
[353663937,1739985086055,-1000.0,0.0001367,2]
[353663938,1739985086066,-500.0,0.0001367,2]
[353663939,1739985086077,-500.0,0.0001367,2]
[353663940,1739985086087,-500.0,0.0001367,2]
[353663941,1739985086097,-500.0,0.0001367,2]
[353663942,1739985086107,-801.18903558,0.0001367,2]
[353663943,1739985086117,-500.0,0.00013671,2]
[353663944,1739985086127,-5430.28496544,0.0001368,2]
[353663945,1739985086138,-695.38,0.00013687,2]
[353663946,1739985086148,-40108.06307922,0.0001369,2]
[353663947,1739985086158,-5262.10800662,0.0001369,2]
[353663948,1739985086168,-151.0,0.00013691,2]
[353663949,1739985086179,-151.0,0.00013691,2]
[353663950,1739985086189,-5010.4148923,0.00013691,2]
[353663951,1739985086199,-4932.1271596,0.00013691,2]
[353663952,1739985086209,-4853.839427,0.00013691,2]
[353663953,1739985086218,-2448.8583008,0.00013691,2]
[353663954,1739985086228,-2410.5948899,0.00013691,2]
[353663955,1739985086238,-2372.3314789,0.00013691,2]
[353663956,1739985086248,-8960.4765073,0.00013691,2]
[353663957,1739985086259,-8818.2467215,0.00013691,2]
[353663958,1739985086269,-8676.0169357,0.00013691,2]
[353663959,1739985086279,-2885.1218862,0.00013691,2]
[353663960,1739985086289,-2839.3263007,0.00013691,2]
[353663961,1739985086299,-2793.5307152,0.00013691,2]
[353663962,1739985086507,-599.36,0.00013696,2]
[353663963,1739985086518,-53454.4552526,0.00013697,2]
[353663964,1739985086527,-500.0,0.00013697,2]
[353663965,1739985086538,-419.86303376,0.00013697,2]
[353663966,1739985086551,-510.97,0.00013697,2]
[353663967,1739985086561,-287.656352,0.00013697,2]
[353663968,1739985086571,-334.763041,0.00013697,2]
[353663969,1739985086580,-334.763041,0.00013697,2]
[353663970,1739985086589,-150.0,0.00013698,2]
[353663971,1739985086599,-150.0,0.00013698,2]
[353663972,1739985086612,-150.0,0.00013698,2]
[353663973,1739985086623,-150.0,0.00013698,2]
[353663974,1739985086634,-882.81600385,0.00013698,2]
[353663975,1739985086643,-346.71834382,0.00013698,2]
[353663976,1739985086655,-10405.87889502,0.00013698,2]
[353663977,1739985086665,-1006.92741325,0.00013698,2]
[353663978,1739985086675,-6379.01313301,0.00013698,7]
[353663979,1739985086685,-1000.0,0.00013698,3]
[353663980,1739985086695,-1356.84,0.00013698,2]
[353663981,1739985086706,-1356.84,0.00013698,2]
[353663982,1739985086717,-1356.84,0.00013698,2]
[353663983,1739985086727,-1356.84,0.00013698,2]
[353663984,1739985086739,-1356.84,0.00013698,2]
[353663985,1739985086749,-1356.84,0.00013698,2]
[353663986,1739985086759,-1356.84,0.00013698,2]
[353663987,1739985086768,-1356.84,0.00013698,2]
[353663988,1739985086779,-1356.84,0.00013698,2]
[353663989,1739985086789,-1356.84,0.00013698,2]
[353663990,1739985086799,-1356.84,0.00013698,2]
[353663991,1739985086808,-1356.84,0.00013698,2]
[353663992,1739985086818,-1356.84,0.00013698,2]
[353663993,1739985086827,-1356.84,0.00013698,2]
[353663994,1739985086837,-1356.84,0.00013698,2]
[353663995,1739985086846,-1356.84,0.00013698,2]
[353663996,1739985086856,-1356.84,0.00013698,2]
[353663997,1739985086866,-1356.84,0.00013698,2]
[353663998,1739985086875,-1356.84,0.00013698,2]
[353663999,1739985086886,-1356.84,0.00013698,2]
[353664000,1739985086896,-1356.84,0.00013698,2]
[353664001,1739985086907,-1356.84,0.00013698,2]
[353664002,1739985086917,-1356.84,0.00013698,2]
[353664003,1739985086927,-1356.84725129,0.00013698,2]
[353664004,1739985086938,-1000.0,0.00013698,2]
[353664005,1739985086949,-525.30760008,0.00013698,2]
[353664006,1739985086959,-500.0,0.00013698,2]
[353664007,1739985086969,-500.0,0.00013698,2]
[353664008,1739985086979,-500.0,0.00013698,2]
[353664009,1739985086988,-500.0,0.00013698,2]
[353664010,1739985086998,-500.0,0.00013698,2]
[353664011,1739985087007,-500.0,0.00013698,2]
[353664012,1739985087018,-500.0,0.00013698,2]
[353664013,1739985087027,-500.0,0.00013699,2]
[353664014,1739985087037,-500.0,0.00013699,2]
[353664015,1739985087047,-500.0,0.00013699,2]
[353664016,1739985087056,-500.0,0.00013699,2]
[353664017,1739985087066,-500.0,0.00013699,2]
[353664018,1739985087075,-151.0,0.00013699,2]
[353664019,1739985087085,-5613.0,0.00013699,6]
[353664020,1739985087095,-9999.99,0.00013699,2]
[353664021,1739985087105,-9999.99,0.00013699,2]
[353664022,1739985087116,-191.84,0.00013699,2]
[353664023,1739985087125,-999.99,0.00013699,2]
[353664024,1739985087135,-394.67,0.00013699,2]
[353664025,1739985087145,-150.99,0.00013699,2]
[353664026,1739985087155,-9858.69,0.00013699,2]
[353664027,1739985087165,-263.11969102,0.00013699,2]
[353664028,1739985087175,-155.75,0.00013699,2]
[353664029,1739985087186,-200.0,0.00013699,2]
[353664030,1739985087196,-500.0,0.00013699,2]
[353664031,1739985087206,-500.0,0.00013699,2]
[353664032,1739985087215,-500.0,0.00013699,2]
[353664033,1739985087225,-358.49454443,0.00013699,2]
[353664034,1739985087235,-500.0,0.00013699,2]
[353664035,1739985087245,-519.11901494,0.00013699,2]
[353664036,1739985087256,-500.17537821,0.00013699,2]
[353664037,1739985087266,-500.0,0.00013699,2]
[353664038,1739985087275,-500.0,0.00013699,2]
[353664039,1739985087285,-510.97,0.00013699,2]
[353664040,1739985087295,-510.97,0.00013699,2]
[353664041,1739985087305,-510.97,0.00013699,2]
[353664042,1739985087315,-510.97,0.00013699,2]
[353664043,1739985087326,-511.11074848,0.00013699,2]
[353664044,1739985087335,-599.36,0.00013699,2]
[353664045,1739985087345,-599.36,0.00013699,2]
[353664046,1739985087355,-599.36,0.00013699,2]
[353664047,1739985087366,-599.36,0.00013699,2]
[353664048,1739985087376,-599.36,0.00013699,2]
[353664049,1739985087387,-599.36,0.00013699,2]
[353664050,1739985087396,-599.53319883,0.00013699,2]
[353664051,1739985087406,-156.720506,0.00013699,2]
[353664052,1739985087416,-4131.80258429,0.000137,2]
[353664053,1739985087425,-1966656.46156662,0.000137,2]
[353664054,1739985087435,-1072675.52895743,0.000137,5]
[353664055,1739985087824,-28113.64000012,0.000137,5]
[353664056,1739985087835,-96550.00000001,0.000137,5]
[353664057,1739985087874,-455.07484353,0.00013227,2]
[353664058,1739985087886,-677.12515647,0.00013227,2]
[353664059,1739985087896,-156.720506,0.00013396,2]
[353664060,1739985087906,-84231.61792371,0.000137,5]
[353664061,1739985088403,-691.31699952,0.00013292,2]
[353664062,1739985088413,-964.33300048,0.0001331,2]
[353664063,1739985088426,-167.86699952,0.0001331,2]
[353664064,1739985088437,-1132.2,0.00013392,2]
[353664065,1739985088447,-469.58475448,0.00013474,2]
[353664066,1739985088462,-662.61524552,0.00013474,2]
[353664067,1739985088472,-122.62777364,0.00013476,2]
[353664068,1739985088484,-34.09273236,0.00013476,2]
[353664069,1739985088495,-1132.2,0.00013556,2]
[353664070,1739985088505,-156.720506,0.00013558,2]
[353664071,1739985088515,-1132.2,0.00013638,2]
[353664072,1739985088524,-156.720506,0.0001364,2]
[353664073,1739985088535,-156.720506,0.00013699,2]
[353664074,1739985088546,-80206.56200986,0.000137,5]
[353664075,1739985088558,-5236.4499454,0.000137,5]
[353664076,1739985088569,-1288.15,0.000137,5]
[353664077,1739985088594,-1619.0442814,0.000137,5]
[353664078,1739985088606,-545.59229972,0.000137,5]
[353664079,1739985088620,-525.46681025,0.000137,5]
[353664080,1739985088631,-165418.81074889,0.000137,5]
[353664081,1739985088648,-988.39125606,0.000137,5]
[353664082,1739985088731,-963.75469085,0.000137,5]
[353664083,1739985089329,-8864.1,0.00012267,2]
[353664084,1739985089339,-40067.38859293,0.000137,5]
[353664085,1739985089394,-4827.86045042,0.000137,5]
[353664086,1739985089406,-1494.35,0.000137,5]
[353664087,1739985089417,-877.741356,0.000137,5]
[353664088,1739985089470,-502.19842565,0.000137,5]
[353664089,1739985089482,-2508.52667639,0.000137,5]
[353664090,1739985089495,-486.42290274,0.000137,5]
[353664091,1739985089506,-2731.87821099,0.000137,5]
[353664092,1739985089517,-2006.35438796,0.000137,5]
[353664095,1739985598044,189.18,8.767e-05,2]
[353664096,1739985968013,6720.21771907,8e-05,2]
[353664120,1739986231818,-866.55,9.908e-05,2]
[353664121,1739986231828,-500.0,9.973e-05,2]
[353664122,1739986231837,-300.0,9.999e-05,2]
[353664123,1739986231848,-221.67214557,9.999e-05,2]
[353664124,1739986231858,-151.51506011,0.0001,2]
[353664125,1739986231867,-840.22366256,0.0001,2]
[353664126,1739986231880,-34618.13712168,0.0001,2]
[353664127,1739986231927,-3375.12534414,0.0001,2]
[353664128,1739986231984,-718.36983444,0.0001,2]
[353664573,1739986237763,-75978.01366071,0.0001,2]
[353664574,1739986237873,-703496.18110022,0.0001,2]
[353664575,1739986237884,-659334.77482183,0.0001,2]
[353664576,1739986237894,-177.42720168,0.0001,2]
[353664577,1739986237904,-150.15757632,0.0001,2]
[353664578,1739986237919,-533.85965097,0.0001,2]
[353664579,1739986237929,-205.56055617,0.0001,2]
[353664580,1739986237939,-1000.0,0.00010521,2]
[353664581,1739986237949,-233.82,0.00010611,2]
[353664582,1739986237958,-1000.0,0.00010681,2]
[353664583,1739986237968,-214.89709952,0.000108,2]
[353664584,1739986237977,-160.7745059,0.000109,2]
[353664585,1739986237986,-1280.1,0.00010958,2]
[353664586,1739986237996,-1865.24,0.00010958,2]
[353664587,1739986238006,-1471.53,0.00010958,2]
[353664588,1739986238015,-1524.59,0.00010958,2]
[353664589,1739986238025,-725.12,0.00010958,2]
[353664590,1739986238035,-1651.7,0.00010958,2]
[353664591,1739986238045,-2152.29,0.00010958,2]
[353664592,1739986238054,-1552.62,0.00010958,2]
[353664593,1739986238065,-500.0,0.00010958,2]
[353664594,1739986238075,-1962.68,0.00010958,2]
[353664595,1739986238085,-500.0,0.00010958,2]
[353664596,1739986238095,-755.78,0.00010958,2]
[353664597,1739986238104,-1963.99,0.00010958,2]
[353664598,1739986238114,-2632.01,0.00010958,2]
[353664599,1739986238123,-500.0,0.00010958,2]
[353664600,1739986238133,-1670.81,0.00010958,2]
[353664601,1739986238142,-1131.87,0.00010958,2]
[353664603,1739986238152,-1750.59,0.00010958,2]
[353664605,1739986238161,-500.0,0.00010958,2]
[353664607,1739986238170,-840.45,0.00010958,2]
[353664609,1739986238179,-1832.34,0.00010958,2]
[353664611,1739986238188,-2518.5,0.00010958,2]
[353664613,1739986238197,-1567.58,0.00010958,2]
[353664615,1739986238207,-500.0,0.00010958,2]
[353664617,1739986238216,-1043.77,0.00010958,2]
[353664619,1739986238225,-500.0,0.00010958,2]
[353664621,1739986238234,-845.34,0.00010958,2]
[353664623,1739986238244,-594.93,0.00010958,2]
[353664625,1739986238253,-1439.34,0.00010958,2]
[353664627,1739986238262,-767.34,0.00010958,2]
[353664629,1739986238272,-153.625135,0.00010958,2]
[353664631,1739986238281,-1022.53,0.00010958,2]
[353664633,1739986238290,-942.36,0.00010958,2]
[353664635,1739986238300,-1815.9,0.00010958,2]
[353664637,1739986238309,-500.0,0.00010958,2]
[353664639,1739986238319,-550.0,0.00011,2]
[353664641,1739986238329,-236.82751232,0.00011,2]
[353664643,1739986238338,-2375.96872768,0.00011,2]
[353664645,1739986238347,-1280.1,0.00011041,2]
[353664647,1739986238357,-1865.24,0.00011041,2]
[353664649,1739986238366,-1471.53,0.00011041,2]
[353664651,1739986238375,-1524.59,0.00011041,2]
[353664653,1739986238385,-725.12,0.00011041,2]
[353664655,1739986238393,-1651.7,0.00011041,2]
[353664657,1739986238403,-2152.29,0.00011041,2]
[353664659,1739986238412,-1552.62,0.00011041,2]
[353664661,1739986238422,-500.0,0.00011041,2]
[353664663,1739986238431,-1962.68,0.00011041,2]
[353664665,1739986238441,-500.0,0.00011041,2]
[353664667,1739986238450,-755.78,0.00011041,2]
[353664669,1739986238459,-1963.99,0.00011041,2]
[353664671,1739986238469,-2632.01,0.00011041,2]
[353664673,1739986238478,-500.0,0.00011041,2]
[353664675,1739986238487,-1670.81,0.00011041,2]
[353664677,1739986238497,-1131.87,0.00011041,2]
[353664679,1739986238506,-1750.59,0.00011041,2]
[353664681,1739986238516,-500.0,0.00011041,2]
[353664683,1739986238525,-840.45,0.00011041,2]
[353664685,1739986238534,-1832.34,0.00011041,2]
[353664687,1739986238543,-2518.5,0.00011041,2]
[353664689,1739986238552,-1567.58,0.00011041,2]
[353664691,1739986238563,-500.0,0.00011041,2]
[353664693,1739986238572,-1043.77,0.00011041,2]
[353664695,1739986238582,-500.0,0.00011041,2]
[353664697,1739986238592,-845.34,0.00011041,2]
[353664699,1739986238602,-594.93,0.00011041,2]
[353664701,1739986238611,-1439.34,0.00011041,2]
[353664703,1739986238621,-767.34,0.00011041,2]
[353664705,1739986238629,-1022.53,0.00011041,2]
[353664707,1739986238639,-942.36,0.00011041,2]
[353664709,1739986238648,-1815.9,0.00011041,2]
[353664711,1739986238658,-500.0,0.00011041,2]
[353664713,1739986238668,-300.15510417,0.00011099,2]
[353664715,1739986238678,-300.15510416,0.00011099,2]
[353664717,1739986238687,-1280.1,0.00011123,2]
[353664719,1739986238696,-1865.24,0.00011123,2]
[353664721,1739986238706,-1471.53,0.00011123,2]
[353664723,1739986238715,-1524.59,0.00011123,2]
[353664725,1739986238724,-725.12,0.00011123,2]
[353664727,1739986238733,-1651.7,0.00011123,2]
[353664729,1739986238743,-2152.29,0.00011123,2]
[353664731,1739986238755,-1552.62,0.00011123,2]
[353664733,1739986238765,-500.0,0.00011123,2]
[353664735,1739986238774,-1962.68,0.00011123,2]
[353664737,1739986238783,-500.0,0.00011123,2]
[353664739,1739986238793,-755.78,0.00011123,2]
[353664742,1739986238802,-1963.99,0.00011123,2]
[353664743,1739986238813,-2632.01,0.00011123,2]
[353664746,1739986238823,-500.0,0.00011123,2]
[353664748,1739986238832,-1670.81,0.00011123,2]
[353664749,1739986238843,-1131.87,0.00011123,2]
[353664752,1739986238853,-1750.59,0.00011123,2]
[353664753,1739986238862,-500.0,0.00011123,2]
[353664756,1739986238873,-840.45,0.00011123,2]
[353664758,1739986238882,-1832.34,0.00011123,2]
[353664760,1739986238892,-2518.5,0.00011123,2]
[353664762,1739986238902,-1567.58,0.00011123,2]
[353664764,1739986238911,-500.0,0.00011123,2]
[353664766,1739986238922,-1043.77,0.00011123,2]
[353664768,1739986238931,-500.0,0.00011123,2]
[353664770,1739986238940,-845.34,0.00011123,2]
[353664772,1739986238950,-594.93,0.00011123,2]
[353664774,1739986238959,-1439.34,0.00011123,2]
[353664776,1739986238968,-767.34,0.00011123,2]
[353664778,1739986238977,-1022.53,0.00011123,2]
[353664780,1739986238986,-942.36,0.00011123,2]
[353664782,1739986238996,-1815.9,0.00011123,2]
[353664784,1739986239005,-500.0,0.00011123,2]
[353664786,1739986239015,-1280.1,0.00011205,2]
[353664788,1739986239025,-1865.24,0.00011205,2]
[353664790,1739986239034,-1471.53,0.00011205,2]
[353664792,1739986239043,-1524.59,0.00011205,2]
[353664794,1739986239052,-725.12,0.00011205,2]
[353664796,1739986239063,-1651.7,0.00011205,2]
[353664798,1739986239073,-2152.29,0.00011205,2]
[353664800,1739986239083,-1552.62,0.00011205,2]
[353664802,1739986239092,-500.0,0.00011205,2]
[353664804,1739986239101,-1962.68,0.00011205,2]
[353664806,1739986239110,-500.0,0.00011205,2]
[353664808,1739986239120,-755.78,0.00011205,2]
[353664810,1739986239129,-1963.99,0.00011205,2]
[353664812,1739986239138,-2632.01,0.00011205,2]
[353664814,1739986239148,-500.0,0.00011205,2]
[353664816,1739986239157,-1670.81,0.00011205,2]
[353664818,1739986239167,-1131.87,0.00011205,2]
[353664820,1739986239175,-1750.59,0.00011205,2]
[353664822,1739986239185,-317.94349526,0.00011205,2]
[353664824,1739986239195,-840.45,0.00011205,2]
[353664826,1739986239206,-1832.34,0.00011205,2]
[353664828,1739986239217,-2518.5,0.00011205,2]
[353664830,1739986239226,-1567.58,0.00011205,2]
[353664832,1739986239236,-500.0,0.00011205,2]
[353664834,1739986239247,-1043.77,0.00011205,2]
[353664836,1739986239257,-500.0,0.00011205,2]
[353664838,1739986239267,-845.34,0.00011205,2]
[353664840,1739986239277,-594.93,0.00011205,2]
[353664842,1739986239286,-1439.34,0.00011205,2]
[353664844,1739986239295,-767.34,0.00011205,2]
[353664846,1739986239305,-1022.53,0.00011205,2]
[353664849,1739986239317,-942.36,0.00011205,2]
[353664850,1739986239327,-1280.1,0.00011287,2]
[353664853,1739986239337,-1865.24,0.00011287,2]
[353664855,1739986239346,-1471.53,0.00011287,2]
[353664857,1739986239355,-1524.59,0.00011287,2]
[353664859,1739986239364,-725.12,0.00011287,2]
[353664861,1739986239374,-1651.7,0.00011287,2]
[353664863,1739986239383,-2152.29,0.00011287,2]
[353664865,1739986239393,-1552.62,0.00011287,2]
[353664867,1739986239402,-500.0,0.00011287,2]
[353664869,1739986239412,-1962.68,0.00011287,2]
[353664871,1739986239421,-500.0,0.00011287,2]
[353664873,1739986239431,-755.78,0.00011287,2]
[353664875,1739986239440,-1963.99,0.00011287,2]
[353664877,1739986239449,-2632.01,0.00011287,2]
[353664879,1739986239458,-500.0,0.00011287,2]
[353664880,1739986239468,-1670.81,0.00011287,2]
[353664881,1739986239479,-1131.87,0.00011287,2]
[353664882,1739986239488,-1750.59,0.00011287,2]
[353664883,1739986239498,-840.45,0.00011287,2]
[353664884,1739986239507,-1832.34,0.00011287,2]
[353664885,1739986239516,-2518.5,0.00011287,2]
[353664886,1739986239526,-1567.58,0.00011287,2]
[353664887,1739986239536,-500.0,0.00011287,2]
[353664889,1739986239545,-1043.77,0.00011287,2]
[353664891,1739986239555,-500.0,0.00011287,2]
[353664893,1739986239566,-845.34,0.00011287,2]
[353664895,1739986239576,-594.93,0.00011287,2]
[353664897,1739986239585,-1439.34,0.00011287,2]
[353664899,1739986239595,-767.34,0.00011287,2]
[353664901,1739986239604,-1022.53,0.00011287,2]
[353664903,1739986239613,-942.36,0.00011287,2]
[353664904,1739986239623,-300.15510416,0.00011344,2]
[353664906,1739986239633,-1280.1,0.00011369,2]
[353664909,1739986239643,-1471.53,0.00011369,2]
[353664910,1739986239653,-1524.59,0.00011369,2]
[353664913,1739986239662,-725.12,0.00011369,2]
[353664915,1739986239672,-1651.7,0.00011369,2]
[353664916,1739986239681,-2152.29,0.00011369,2]
[353664918,1739986239690,-1552.62,0.00011369,2]
[353664920,1739986239700,-500.0,0.00011369,2]
[353664923,1739986239709,-1962.68,0.00011369,2]
[353664925,1739986239718,-500.0,0.00011369,2]
[353664927,1739986239728,-755.78,0.00011369,2]
[353664929,1739986239738,-1963.99,0.00011369,2]
[353664931,1739986239746,-2632.01,0.00011369,2]
[353664933,1739986239755,-500.0,0.00011369,2]
[353664935,1739986239765,-1670.81,0.00011369,2]
[353664937,1739986239774,-1131.87,0.00011369,2]
[353664939,1739986239784,-1750.59,0.00011369,2]
[353664941,1739986239793,-840.45,0.00011369,2]
[353664943,1739986239804,-1832.34,0.00011369,2]
[353664945,1739986239815,-2518.5,0.00011369,2]
[353664948,1739986239825,-1567.58,0.00011369,2]
[353664950,1739986239835,-500.0,0.00011369,2]
[353664952,1739986239853,-1043.77,0.00011369,2]
[353664954,1739986239864,-500.0,0.00011369,2]
[353664956,1739986239878,-845.34,0.00011369,2]
[353664958,1739986239888,-594.93,0.00011369,2]
[353664960,1739986239898,-1439.34,0.00011369,2]
[353664962,1739986239909,-767.34,0.00011369,2]
[353664964,1739986239919,-1022.53,0.00011369,2]
[353664966,1739986239928,-942.36,0.00011369,2]
[353664968,1739986239939,-1280.1,0.00011452,2]
[353664970,1739986239949,-1471.53,0.00011452,2]
[353664972,1739986239958,-1524.59,0.00011452,2]
[353664974,1739986239968,-725.12,0.00011452,2]
[353664976,1739986239979,-1651.7,0.00011452,2]
[353664979,1739986239989,-2152.29,0.00011452,2]
[353664981,1739986239999,-1552.62,0.00011452,2]
[353664983,1739986240008,-500.0,0.00011452,2]
[353664985,1739986240019,-1962.68,0.00011452,2]
[353664987,1739986240028,-500.0,0.00011452,2]
[353664989,1739986240038,-755.78,0.00011452,2]
[353664991,1739986240048,-1963.99,0.00011452,2]
[353664993,1739986240058,-2632.01,0.00011452,2]
[353664995,1739986240069,-500.0,0.00011452,2]
[353664997,1739986240079,-1670.81,0.00011452,2]
[353664999,1739986240089,-1131.87,0.00011452,2]
[353665001,1739986240099,-1750.59,0.00011452,2]
[353665003,1739986240108,-840.45,0.00011452,2]
[353665005,1739986240117,-1832.34,0.00011452,2]
[353665007,1739986240126,-2518.5,0.00011452,2]
[353665009,1739986240136,-1567.58,0.00011452,2]
[353665011,1739986240145,-313.82590351,0.00011452,2]
[353665013,1739986240155,-1043.77,0.00011452,2]
[353665015,1739986240164,-500.0,0.00011452,2]
[353665017,1739986240174,-845.34,0.00011452,2]
[353665019,1739986240183,-594.93,0.00011452,2]
[353665021,1739986240193,-1439.34,0.00011452,2]
[353665023,1739986240202,-767.34,0.00011452,2]
[353665025,1739986240211,-1022.53,0.00011452,2]
[353665027,1739986240220,-942.36,0.00011452,2]
[353665029,1739986240230,-1500.0,0.00011522,2]
[353665031,1739986240239,-1280.1,0.00011534,2]
[353665033,1739986240249,-1471.53,0.00011534,2]
[353665035,1739986240259,-1524.59,0.00011534,2]
[353665037,1739986240269,-725.12,0.00011534,2]
[353665039,1739986240279,-1651.7,0.00011534,2]
[353665041,1739986240288,-2152.29,0.00011534,2]
[353665043,1739986240297,-1552.62,0.00011534,2]
[353665045,1739986240307,-500.0,0.00011534,2]
[353665046,1739986240319,-1962.68,0.00011534,2]
[353665049,1739986240329,-500.0,0.00011534,2]
[353665051,1739986240339,-755.78,0.00011534,2]
[353665053,1739986240349,-1963.99,0.00011534,2]
[353665055,1739986240359,-2632.01,0.00011534,2]
[353665057,1739986240368,-500.0,0.00011534,2]
[353665059,1739986240377,-1670.81,0.00011534,2]
[353665061,1739986240387,-1131.87,0.00011534,2]
[353665063,1739986240397,-1750.59,0.00011534,2]
[353665065,1739986240407,-840.45,0.00011534,2]
[353665067,1739986240417,-1832.34,0.00011534,2]
[353665069,1739986240427,-2518.5,0.00011534,2]
[353665071,1739986240438,-1567.58,0.00011534,2]
[353665073,1739986240448,-1043.77,0.00011534,2]
[353665075,1739986240459,-500.0,0.00011534,2]
[353665077,1739986240469,-845.34,0.00011534,2]
[353665079,1739986240479,-594.93,0.00011534,2]
[353665081,1739986240489,-1439.34,0.00011534,2]
[353665084,1739986240499,-767.34,0.00011534,2]
[353665085,1739986240508,-1022.53,0.00011534,2]
[353665088,1739986240517,-942.36,0.00011534,2]
[353665090,1739986240527,-1280.1,0.00011616,2]
[353665092,1739986240538,-1471.53,0.00011616,2]
[353665093,1739986240547,-1524.59,0.00011616,2]
[353665095,1739986240556,-725.12,0.00011616,2]
[353665098,1739986240567,-1651.7,0.00011616,2]
[353665099,1739986240576,-2152.29,0.00011616,2]
[353665102,1739986240586,-1552.62,0.00011616,2]
[353665103,1739986240595,-500.0,0.00011616,2]
[353665105,1739986240605,-1962.68,0.00011616,2]
[353665107,1739986240615,-500.0,0.00011616,2]
[353665109,1739986240624,-755.78,0.00011616,2]
[353665111,1739986240634,-1963.99,0.00011616,2]
[353665113,1739986240643,-2632.01,0.00011616,2]
[353665115,1739986240653,-500.0,0.00011616,2]
[353665118,1739986240664,-1670.81,0.00011616,2]
[353665120,1739986240674,-1131.87,0.00011616,2]
[353665122,1739986240683,-1750.59,0.00011616,2]
[353665124,1739986240693,-840.45,0.00011616,2]
[353665154,1739986240969,-1832.34,0.00011616,2]
[353665156,1739986240980,-2518.5,0.00011616,2]
[353665158,1739986240990,-1567.58,0.00011616,2]
[353665160,1739986240999,-1043.77,0.00011616,2]
[353665162,1739986241009,-500.0,0.00011616,2]
[353665164,1739986241019,-845.34,0.00011616,2]
[353665166,1739986241029,-594.93,0.00011616,2]
[353665168,1739986241038,-1439.34,0.00011616,2]
[353665169,1739986241047,-767.34,0.00011616,2]
[353665170,1739986241056,-1022.53,0.00011616,2]
[353665171,1739986241066,-942.36,0.00011616,2]
[353665172,1739986241075,-300.15510416,0.00011667,2]
[353665173,1739986241084,-1280.1,0.00011698,2]